lending/lending_fUSD_20240509
["ID","MTS","AMOUNT","RATE_DAILY","PERIOD"]
[326747701,1715297481759,-2083.25,0.00030958,7]
[326747702,1715297481769,-2610.89,0.00030958,7]
[326747703,1715297481780,-1682.1,0.00030958,7]
[326747704,1715297481789,-500.0,0.00030958,7]
[326747705,1715297481799,-500.0,0.00030958,7]
[326747706,1715297481809,-661.9,0.00030958,7]
[326747707,1715297481819,-24129.0,0.00030958,7]
[326747708,1715297481829,-500.0,0.00030958,7]
[326747709,1715297481839,-4279.15,0.00030958,7]
[326747710,1715297481849,-8213.78,0.00030958,7]
[326747711,1715297481859,-232.293167,0.00030958,7]
[326747712,1715297481869,-500.0,0.00030958,7]
[326747713,1715297481879,-500.0,0.00030958,7]
[326747714,1715297481888,-5534.17,0.00030958,7]
[326747715,1715297481897,-500.0,0.00030958,7]
[326747716,1715297481907,-1539.92,0.00030958,7]
[326747717,1715297481916,-2664.73,0.00030958,7]
[326747718,1715297481926,-3697.77,0.00030958,7]
[326747719,1715297481935,-1284.31,0.00030958,7]
[326747720,1715297481945,-525.3,0.00030958,7]
[326747721,1715297481955,-822.54,0.00030958,7]
[326747722,1715297481965,-1445.3,0.00030958,7]
[326747723,1715297481974,-192.89860486,0.00030958,7]
[326747724,1715297481984,-877.33,0.00030958,7]
[326747725,1715297481999,-500.0,0.00030958,7]
[326747726,1715297482009,-1652.71,0.00030958,7]
[326747727,1715297482019,-2865.81,0.00030958,7]
[326747728,1715297482035,-6791.83,0.00030958,7]
[326747729,1715297482044,-2796.61,0.00030958,7]
[326747730,1715297482054,-500.0,0.00030958,7]
[326747731,1715297482064,-7951.88,0.00030958,7]
[326747732,1715297482074,-1471.75,0.00030958,7]
[326747733,1715297482083,-607.05,0.00030958,7]
[326747734,1715297482093,-786.29,0.00030958,7]
[326747735,1715297482102,-965.16,0.00030958,7]
[326747736,1715297482112,-895.97,0.00030958,7]
[326747737,1715297482122,-1044.27,0.00030958,7]
[326747738,1715297482132,-500.0,0.00030958,7]
[326747739,1715297482142,-500.0,0.00030958,7]
[326747740,1715297482153,-4048.03,0.00030958,7]
[326747741,1715297482162,-500.0,0.00030958,7]
[326747742,1715297482172,-3111.48,0.00030958,7]
[326747743,1715297482181,-3260.6,0.00030958,7]
[326747744,1715297482191,-3705.69,0.00030958,7]
[326747745,1715297482201,-9821.44,0.00030958,7]
[326747746,1715297482211,-2000.5,0.00030958,7]
[326747747,1715297482220,-3885.62,0.00030958,7]
[326747748,1715297482230,-500.0,0.00030958,7]
[326747749,1715297482239,-1184.08,0.00030958,7]
[326747750,1715297482249,-500.0,0.00030958,7]
[326747751,1715297482259,-859.51,0.00030958,7]
[326747752,1715297482269,-3407.17,0.00030958,7]
[326747753,1715297482281,-3424.17,0.00030958,7]
[326747754,1715297482290,-500.0,0.00030958,7]
[326747755,1715297482300,-500.0,0.00030958,7]
[326747756,1715297482310,-500.0,0.00030958,7]
[326747757,1715297482319,-2905.29,0.00030958,7]
[326747758,1715297482330,-151.0,0.00030958,7]
[326747759,1715297482340,-151.0,0.00030958,7]
[326747760,1715297482349,-1243.9,0.00030958,7]
[326747761,1715297482359,-4070.47,0.00030958,7]
[326747762,1715297482372,-17571.32,0.00030958,7]
[326747763,1715297482381,-500.0,0.00030958,7]
[326747764,1715297482391,-1205.11,0.00030958,7]
[326747765,1715297482401,-6018.88,0.00030958,7]
[326747766,1715297482410,-500.0,0.00030958,7]
[326747767,1715297482420,-7657.45,0.00030958,7]
[326747768,1715297482429,-1297.36,0.00030958,7]
[326747769,1715297482438,-500.0,0.00030958,7]
[326747770,1715297482448,-500.0,0.00030958,7]
[326747771,1715297482457,-500.0,0.00030958,7]
[326747772,1715297482467,-761.01,0.00030958,7]
[326747773,1715297482477,-1931.16,0.00030958,7]
[326747774,1715297482486,-500.0,0.00030958,7]
[326747775,1715297482496,-3820.67,0.00030958,7]
[326747776,1715297482505,-11526.79,0.00030958,7]
[326747777,1715297482515,-515.62,0.00030958,7]
[326747778,1715297482527,-151.0,0.00030958,7]
[326747779,1715297482536,-1422.49,0.00030958,7]
[326747780,1715297482545,-151.0,0.00030958,7]
[326747781,1715297482554,-11636.5,0.00030958,7]
[326747782,1715297482563,-3441.16,0.00030958,7]
[326747783,1715297482572,-500.0,0.00030958,7]
[326747784,1715297482582,-1992.01,0.00030958,7]
[326747785,1715297482591,-958.86,0.00030958,7]
[326747786,1715297482601,-554.63338988,0.00030958,7]
[326747787,1715297482610,-500.0,0.00030958,7]
[326747788,1715297482620,-2698.47,0.00030958,7]
[326747789,1715297482629,-500.0,0.00030958,7]
[326747790,1715297482638,-2513.83,0.00030958,7]
[326747791,1715297482645,-2712.53,0.00030958,7]
[326747792,1715297482653,-3209.81,0.00030958,7]
[326747793,1715297482660,-1524.4,0.00030958,7]
[326747794,1715297482668,-771.73,0.00030958,7]
[326747795,1715297482675,-1891.66,0.00030958,7]
[326747796,1715297482682,-2089.49,0.00030958,7]
[326747797,1715297482689,-4269.46,0.00030958,7]
[326747798,1715297482696,-2084.1,0.00030958,7]
[326747799,1715297482703,-500.0,0.00030958,7]
[326747800,1715297482711,-500.0,0.00030958,7]
[326747801,1715297482720,-2378.27,0.00030958,7]
[326747802,1715297482727,-50507.86,0.00030958,7]
[326747803,1715297482734,-552.9,0.00030958,7]
[326747804,1715297482744,-15302.95,0.00030958,7]
[326747805,1715297482751,-500.0,0.00030958,7]
[326747806,1715297482758,-500.0,0.00030958,7]
[326747807,1715297482766,-697.09,0.00030958,7]
[326747808,1715297482778,-509.79,0.00030958,7]
[326747809,1715297482788,-507.62,0.00030958,7]
[326747810,1715297482797,-1916.07,0.00030958,7]
[326747811,1715297482804,-1022.8,0.00030958,7]
[326747812,1715297482812,-1810.67,0.00030958,7]
[326747813,1715297482820,-827.45,0.00030958,7]
[326747814,1715297482827,-23960.66,0.00030958,7]
[326747815,1715297482836,-1548.17,0.00030958,7]
[326747816,1715297482846,-500.0,0.00030958,7]
[326747817,1715297482855,-776.59,0.00030958,7]
[326747818,1715297482865,-921.62,0.00030958,7]
[326747819,1715297482874,-4201.18,0.00030958,7]
[326747820,1715297482884,-831.85,0.00030958,7]
[326747821,1715297482894,-1268.68,0.00030958,7]
[326747822,1715297482904,-2661.61,0.00030958,7]
[326747823,1715297482913,-604.81,0.00030958,7]
[326747824,1715297482923,-883.21,0.00030958,7]
[326747825,1715297482933,-2870.33,0.00030958,7]
[326747826,1715297482942,-508.37286418,0.00030958,7]
[326747827,1715297482951,-2895.77,0.00030958,7]
[326747828,1715297482961,-2751.49,0.00030958,7]
[326747829,1715297482971,-1548.06,0.00030958,7]
[326747830,1715297482981,-2145.57,0.00030958,7]
[326747831,1715297482992,-4417.39,0.00030958,7]
[326747832,1715297483003,-500.0,0.00030958,7]
[326747833,1715297483013,-1081.29,0.00030958,7]
[326747834,1715297483025,-1059.72,0.00030958,7]
[326747835,1715297483039,-1560.23,0.00030958,7]
[326747836,1715297483050,-1385.06,0.00030958,7]
[326747837,1715297483060,-3573.92,0.00030958,7]
[326747838,1715297483071,-3784.22,0.00030958,7]
[326747839,1715297483082,-588.39,0.00030958,7]
[326747840,1715297483092,-20009.53,0.00030958,7]
[326747841,1715297483104,-826.85,0.00030958,7]
[326747842,1715297483114,-2138.97,0.00030958,7]
[326747843,1715297483125,-1271.3,0.00030958,7]
[326747844,1715297483134,-2995.03,0.00030958,7]
[326747845,1715297483144,-954.9,0.00030958,7]
[326747846,1715297483155,-3258.26,0.00030958,7]
[326747847,1715297483165,-1150.69,0.00030958,7]
[326747848,1715297483174,-1439.66,0.00030958,7]
[326747849,1715297483184,-3200.62,0.00030958,7]
[326747850,1715297483194,-500.0,0.00030958,7]
[326747851,1715297483203,-653.8,0.00030958,7]
[326747852,1715297483212,-851.94,0.00030958,7]
[326747853,1715297483222,-500.0,0.00030958,7]
[326747854,1715297483232,-1486.95,0.00030958,7]
[326747855,1715297483241,-910.6,0.00030958,7]
[326747856,1715297483251,-1343.14,0.00030958,7]
[326747857,1715297483261,-6123.7,0.00030958,7]
[326747858,1715297483271,-8892.3,0.00030958,7]
[326747859,1715297483282,-2737.43,0.00030958,7]
[326747860,1715297483292,-3321.03,0.00030958,7]
[326747861,1715297483302,-1488.49,0.00030958,7]
[326747862,1715297483311,-11644.59,0.00030958,7]
[326747863,1715297483321,-4295.29,0.00030958,7]
[326747864,1715297483331,-500.0,0.00030958,7]
[326747865,1715297483340,-500.0,0.00030958,7]
[326747866,1715297483350,-1794.62,0.00030958,7]
[326747867,1715297483359,-500.0,0.00030958,7]
[326747868,1715297483370,-500.0,0.00030958,7]
[326747869,1715297483379,-1745.83,0.00030958,7]
[326747870,1715297483389,-500.0,0.00030958,7]
[326747871,1715297483399,-6047.49,0.00030958,7]
[326747872,1715297483408,-3941.16,0.00030958,7]
[326747873,1715297483418,-564.56,0.00030958,7]
[326747874,1715297483427,-556.15,0.00030958,7]
[326747875,1715297483437,-500.0,0.00030958,7]
[326747876,1715297483446,-525.22,0.00030958,7]
[326747877,1715297483456,-2148.08,0.00030958,7]
[326747878,1715297483465,-3777.52,0.00030958,7]
[326747879,1715297483475,-2104.13,0.00030958,7]
[326747880,1715297483484,-500.0,0.00030958,7]
[326747881,1715297483494,-4559.13,0.00030958,7]
[326747882,1715297483505,-3083.73,0.00030958,7]
[326747883,1715297483514,-500.0,0.00030958,7]
[326747884,1715297483524,-2853.51,0.00030958,7]
[326747885,1715297483534,-2549.11,0.00030958,7]
[326747886,1715297483544,-793.12,0.00030958,7]
[326747887,1715297483554,-708.34,0.00030958,7]
[326747888,1715297483563,-467.70956308,0.00030958,7]
[326747889,1715297483572,-3052.4,0.00030958,7]
[326747890,1715297483583,-500.0,0.00030958,7]
[326747891,1715297483592,-500.0,0.00030958,7]
[326747892,1715297483602,-1377.13,0.00030958,7]
[326747893,1715297483612,-801.06,0.00030958,7]
[326747894,1715297483622,-529.455136,0.00030958,7]
[326747895,1715297483632,-529.455136,0.00030958,7]
[326747896,1715297483642,-3880.41,0.00030958,7]
[326747897,1715297483652,-500.0,0.00030958,7]
[326747898,1715297483661,-8984.56,0.00030958,7]
[326747899,1715297483671,-668.46,0.00030958,7]
[326747900,1715297483680,-3733.89,0.00030958,7]
[326747901,1715297483690,-529.455136,0.00030958,7]
[326747902,1715297483699,-5522.35,0.00030958,7]
[326747903,1715297483709,-529.455136,0.00030958,7]
[326747904,1715297483718,-500.0,0.00030958,7]
[326747905,1715297483727,-500.0,0.00030958,7]
[326747906,1715297483737,-5000.0,0.00030958,7]
[326747907,1715297483747,-2141.08,0.00030958,7]
[326747908,1715297483757,-500.0,0.00030958,7]
[326747909,1715297483767,-982.37,0.00030958,7]
[326747910,1715297483776,-500.0,0.00030958,7]
[326747911,1715297483786,-542.66890177,0.00030958,7]
[326747912,1715297483795,-500.0,0.00030958,7]
[326747913,1715297483805,-500.0,0.00030958,7]
[326747914,1715297483815,-5495.97,0.00030958,7]
[326747915,1715297483824,-2161.21,0.00030958,7]
[326747916,1715297483834,-2823.7,0.00030958,7]
[326747917,1715297484071,-2898.53,0.00030958,7]
[326747918,1715297484090,-3562.78,0.00030958,7]
[326747919,1715297484100,-173.213968,0.00030958,7]
[326747920,1715297484110,-953.67,0.00030958,2]
[326747921,1715297484119,-173.213968,0.00030958,7]
[326747922,1715297484129,-671.81,0.00030958,7]
[326747923,1715297484139,-5243.76,0.00030958,7]
[326747924,1715297484148,-1489.35,0.00030958,7]
[326747925,1715297484158,-173.213968,0.00030958,7]
[326747926,1715297484168,-173.213968,0.00030958,7]
[326747927,1715297484177,-829.6,0.00030958,7]
[326747928,1715297484187,-5954.43,0.00030958,7]
[326747929,1715297484196,-950.25,0.00030958,7]
[326747930,1715297484206,-500.0,0.00030958,7]
[326747931,1715297484216,-1331.07,0.00030958,7]
[326747932,1715297484226,-500.0,0.00030958,7]
[326747933,1715297484236,-4151.56,0.00030958,7]
[326747934,1715297484246,-3540.19,0.00030958,7]
[326747935,1715297484256,-2044.42,0.00030958,7]
[326747936,1715297484266,-2417.55,0.00030958,7]
[326747937,1715297484276,-544.85,0.00030958,7]
[326747938,1715297484285,-3592.67,0.00030958,7]
[326747939,1715297484295,-500.0,0.00030958,7]
[326747940,1715297484304,-679.46,0.00030958,7]
[326747941,1715297484313,-553.68,0.00030958,7]
[326747942,1715297484322,-1001.19,0.00030958,7]
[326747943,1715297484331,-1776.59,0.00030958,7]
[326747944,1715297484341,-9015.09,0.00030958,7]
[326747945,1715297484351,-151.0,0.00030958,7]
[326747946,1715297484360,-2032.37,0.00030958,7]
[326747947,1715297484369,-151.0,0.00030958,7]
[326747948,1715297484379,-3304.47,0.00030958,7]
[326747949,1715297484388,-2006.08,0.00030958,7]
[326747950,1715297484398,-648.89,0.00030958,7]
[326747951,1715297484407,-1587.1,0.00030958,7]
[326747952,1715297484417,-500.0,0.00030958,7]
[326747953,1715297484426,-500.0,0.00030958,7]
[326747954,1715297484436,-526.4,0.00030958,7]
[326747955,1715297484446,-730.89,0.00030958,7]
[326747956,1715297484455,-881.2,0.00030958,7]
[326747957,1715297484465,-1138.73,0.00030958,7]
[326747958,1715297484474,-2476.24,0.00030958,7]
[326747959,1715297484484,-1489.69,0.00030958,7]
[326747960,1715297484494,-629.29,0.00030958,7]
[326747961,1715297484504,-1022.1,0.00030958,7]
[326747962,1715297484514,-607.43,0.00030958,7]
[326747963,1715297484523,-500.0,0.00030958,7]
[326747964,1715297484534,-3868.06,0.00030958,7]
[326747965,1715297484543,-856.6,0.00030958,7]
[326747966,1715297484553,-792.83,0.00030958,7]
[326747967,1715297484563,-33230.34,0.00030958,7]
[326747968,1715297484572,-500.0,0.00030958,7]
[326747969,1715297484581,-2849.26,0.00030958,7]
[326747970,1715297484591,-1205.19,0.00030958,7]
[326747971,1715297484601,-5048.73,0.00030958,7]
[326747972,1715297484611,-517.84,0.00030958,7]
[326747973,1715297484621,-8710.02,0.00030958,7]
[326747974,1715297484630,-1250.08,0.00030958,7]
[326747975,1715297484640,-500.0,0.00030958,7]
[326747976,1715297484650,-1225.18,0.00030958,2]
[326747977,1715297484660,-538.5,0.00030958,7]
[326747978,1715297484670,-507.95745,0.00030958,7]
[326747979,1715297484680,-10603.2,0.00030958,7]
[326747980,1715297484690,-3027.71,0.00030958,7]
[326747981,1715297484700,-500.0,0.00030958,7]
[326747982,1715297484709,-1271.84,0.00030958,7]
[326747983,1715297484720,-500.0,0.00030958,7]
[326747984,1715297484730,-536.78,0.00030958,7]
[326747985,1715297484740,-1554.96,0.00030958,7]
[326747986,1715297484750,-500.0,0.00030958,7]
[326747987,1715297484760,-162.13,0.00030959,2]
[326747988,1715297484770,-398449.01584158,0.0003098,2]
[326747989,1715297484780,-76195.89606389,0.00031,4]
[326747990,1715297484790,-167.01878617,0.00031064,2]
[326747991,1715297484800,-1965.02816181,0.00031082,2]
[326747992,1715297484809,-908.26,0.000311,2]
[326747993,1715297484819,-1008.14,0.000311,2]
[326747994,1715297484828,-705.46,0.000311,2]
[326747995,1715297484838,-183.60364314,0.00031132,2]
[326747996,1715297484847,-3395.35681204,0.00031132,2]
[326747997,1715297484857,-1376.55992041,0.00031132,2]
[326747998,1715297484866,-1077.69143671,0.00031132,2]
[326747999,1715297484876,-12055.24643363,0.0003121,2]
[326748000,1715297484886,-5439.64783756,0.00031232,7]
[326748001,1715297484897,-500.0,0.00031232,8]
[326748002,1715297484907,-716.53,0.00031232,8]
[326748003,1715297484916,-500.0,0.00031232,8]
[326748004,1715297484926,-500.0,0.00031232,8]
[326748005,1715297484936,-789.71,0.00031232,8]
[326748006,1715297484945,-500.0,0.00031232,2]
[326748007,1715297484955,-500.0,0.00031232,8]
[326748008,1715297484964,-994.1,0.00031232,8]
[326748009,1715297484974,-500.0,0.00031232,8]
[326748010,1715297484983,-500.0,0.00031232,8]
[326748011,1715297484994,-804.46,0.00031232,8]
[326748012,1715297485004,-500.0,0.00031232,8]
[326748013,1715297485013,-580.48,0.00031232,8]
[326748014,1715297485022,-500.0,0.00031232,8]
[326748015,1715297485037,-523.92242388,0.00031232,8]
[326748016,1715297485047,-500.0,0.00031232,8]
[326748017,1715297485057,-766.08,0.00031232,8]
[326748018,1715297485067,-663.83,0.00031232,8]
[326748019,1715297485077,-500.0,0.00031232,8]
[326748020,1715297485087,-501.51,0.00031232,8]
[326748021,1715297485096,-500.0,0.00031232,8]
[326748022,1715297485109,-500.0,0.00031232,8]
[326748023,1715297485119,-500.75,0.00031232,8]
[326748024,1715297485128,-500.0,0.00031232,8]
[326748025,1715297485138,-500.0,0.00031232,8]
[326748026,1715297485147,-500.0,0.00031232,8]
[326748027,1715297485157,-500.0,0.00031232,8]
[326748028,1715297485167,-171.06117375,0.00031232,8]
[326748029,1715297485177,-576.24,0.00031232,8]
[326748030,1715297485187,-662.83,0.00031232,8]
[326748031,1715297485196,-889.58,0.00031232,8]
[326748032,1715297485206,-500.0,0.00031232,8]
[326748033,1715297485215,-500.0,0.00031232,8]
[326748034,1715297485224,-500.0,0.00031232,8]
[326748035,1715297485234,-500.0,0.00031232,8]
[326748036,1715297485243,-500.0,0.00031232,8]
[326748037,1715297485253,-978.16,0.00031232,8]
[326748038,1715297485262,-577.33,0.00031232,8]
[326748039,1715297485272,-842.01,0.00031232,8]
[326748040,1715297485283,-500.0,0.00031232,8]
[326748041,1715297485293,-734.77,0.00031232,8]
[326748042,1715297485303,-500.0,0.00031232,8]
[326748043,1715297485313,-898.79,0.00031232,8]
[326748044,1715297485322,-500.0,0.00031232,8]
[326748045,1715297485332,-500.0,0.00031232,8]
[326748046,1715297485341,-562.56,0.00031232,8]
[326748047,1715297485351,-790.18,0.00031232,8]
[326748048,1715297485360,-500.0,0.00031232,8]
[326748049,1715297485370,-500.0,0.00031232,8]
[326748050,1715297485380,-500.0,0.00031232,8]
[326748051,1715297485389,-600.13,0.00031232,8]
[326748052,1715297485399,-500.0,0.00031232,8]
[326748053,1715297485409,-626.43,0.00031232,8]
[326748054,1715297485419,-887.81,0.00031232,8]
[326748055,1715297485428,-500.0,0.00031232,8]
[326748056,1715297485438,-881.06,0.00031232,8]
[326748057,1715297485448,-964.4,0.00031232,8]
[326748058,1715297485457,-714.06,0.00031232,8]
[326748059,1715297485467,-500.0,0.00031232,8]
[326748060,1715297485477,-500.0,0.00031232,8]
[326748061,1715297485486,-536.04,0.00031232,8]
[326748062,1715297485496,-820.56,0.00031232,8]
[326748063,1715297485507,-500.0,0.00031232,8]
[326748064,1715297485517,-500.0,0.00031232,8]
[326748065,1715297485530,-500.0,0.00031232,8]
[326748066,1715297485539,-596.95,0.00031232,8]
[326748067,1715297485550,-500.0,0.00031232,8]
[326748068,1715297485561,-851.48,0.00031232,8]
[326748069,1715297485571,-623.06,0.00031232,8]
[326748070,1715297485585,-770.98,0.00031232,8]
[326748071,1715297485595,-598.1258592,0.00031232,8]
[326748072,1715297485605,-500.0,0.00031232,8]
[326748073,1715297485615,-504.62405251,0.00031232,8]
[326748074,1715297485626,-500.0,0.00031232,8]
[326748075,1715297485636,-500.0,0.00031232,8]
[326748076,1715297485645,-500.0,0.00031232,8]
[326748077,1715297485656,-1500.0,0.00031232,8]
[326748078,1715297485666,-500.0,0.00031232,8]
[326748079,1715297485675,-500.0,0.00031232,8]
[326748080,1715297485684,-500.0,0.00031232,8]
[326748081,1715297485694,-686.45,0.00031232,8]
[326748082,1715297485703,-500.0,0.00031232,8]
[326748083,1715297485713,-500.0,0.00031232,8]
[326748084,1715297485722,-500.0,0.00031232,8]
[326748085,1715297485732,-516.09,0.00031232,8]
[326748086,1715297485741,-500.0,0.00031232,8]
[326748087,1715297485751,-500.0,0.00031232,8]
[326748088,1715297485760,-935.28,0.00031232,8]
[326748089,1715297485770,-500.0,0.00031232,8]
[326748090,1715297485779,-1078.4,0.00031232,8]
[326748091,1715297485788,-500.0,0.00031232,8]
[326748092,1715297485798,-500.0,0.00031232,8]
[326748093,1715297485807,-763.25,0.00031232,8]
[326748094,1715297485816,-500.0,0.00031232,8]
[326748095,1715297485826,-584.37,0.00031232,8]
[326748096,1715297485836,-1260.64,0.00031232,8]
[326748097,1715297485845,-506.26070353,0.00031232,8]
[326748098,1715297485854,-906.64,0.00031232,8]
[326748099,1715297485864,-500.0,0.00031232,8]
[326748100,1715297485873,-711.25,0.00031232,8]
[326748101,1715297485882,-500.0,0.00031232,8]
[326748102,1715297485891,-500.0,0.00031232,8]
[326748103,1715297485900,-500.0,0.00031232,8]
[326748104,1715297485910,-500.0,0.00031232,8]
[326748105,1715297485919,-500.0,0.00031232,8]
[326748106,1715297485929,-500.0,0.00031232,8]
[326748107,1715297485938,-887.86,0.00031232,8]
[326748108,1715297485947,-500.0,0.00031232,8]
[326748109,1715297485956,-500.0,0.00031232,8]
[326748110,1715297485966,-903.22,0.00031232,8]
[326748111,1715297485976,-500.0,0.00031232,8]
[326748112,1715297485985,-500.0,0.00031232,8]
[326748113,1715297485994,-853.61,0.00031232,8]
[326748114,1715297486004,-1323.39,0.00031232,8]
[326748115,1715297486013,-500.0,0.00031232,8]
[326748116,1715297486022,-500.0,0.00031232,8]
[326748117,1715297486037,-500.0,0.00031232,8]
[326748118,1715297486047,-618.86,0.00031232,8]
[326748119,1715297486057,-500.0,0.00031232,8]
[326748120,1715297486066,-977.85,0.00031232,8]
[326748121,1715297486075,-500.0,0.00031232,8]
[326748122,1715297486085,-500.0,0.00031232,8]
[326748123,1715297486094,-500.0,0.00031232,8]
[326748124,1715297486104,-500.0,0.00031232,8]
[326748125,1715297486114,-960.09,0.00031232,8]
[326748126,1715297486124,-500.0,0.00031232,8]
[326748127,1715297486133,-150.0,0.00031232,8]
[326748128,1715297486143,-653.33,0.00031232,8]
[326748129,1715297486152,-584.96,0.00031232,8]
[326748130,1715297486162,-1075.64,0.00031232,8]
[326748131,1715297486171,-513.3104064,0.00031232,8]
[326748132,1715297486181,-808.68,0.00031232,8]
[326748133,1715297486191,-536.32,0.00031232,8]
[326748134,1715297486201,-636.82,0.00031232,8]
[326748135,1715297486211,-500.0,0.00031232,8]
[326748136,1715297486220,-680.22,0.00031232,8]
[326748137,1715297486229,-500.0,0.00031232,8]
[326748138,1715297486239,-527.84,0.00031232,8]
[326748139,1715297486248,-500.0,0.00031232,8]
[326748140,1715297486258,-710.23,0.00031232,8]
[326748141,1715297486268,-500.0,0.00031232,8]
[326748142,1715297486278,-500.0,0.00031232,8]
[326748143,1715297486288,-500.0,0.00031232,8]
[326748144,1715297486297,-500.0,0.00031232,8]
[326748145,1715297486307,-500.0,0.00031232,8]
[326748146,1715297486316,-500.0,0.00031232,8]
[326748147,1715297486326,-1011.61,0.00031232,8]
[326748148,1715297486335,-644.49,0.00031232,8]
[326748149,1715297486344,-500.0,0.00031232,8]
[326748150,1715297486354,-1818.74,0.00031232,8]
[326748151,1715297486364,-500.0,0.00031232,8]
[326748152,1715297486374,-500.0,0.00031232,8]
[326748153,1715297486383,-500.0,0.00031232,8]
[326748154,1715297486393,-500.0,0.00031232,8]
[326748155,1715297486403,-824.76,0.00031232,8]
[326748156,1715297486412,-1122.54,0.00031232,8]
[326748157,1715297486422,-515.33,0.00031232,8]
[326748158,1715297486431,-500.0,0.00031232,8]
[326748159,1715297486441,-878.31,0.00031232,8]
[326748160,1715297486451,-581.67,0.00031232,8]
[326748161,1715297486460,-500.0,0.00031232,8]
[326748162,1715297486469,-744.62,0.00031232,8]
[326748163,1715297486479,-500.0,0.00031232,8]
[326748164,1715297486489,-500.0,0.00031232,8]
[326748165,1715297486499,-706.76,0.00031232,8]
[326748166,1715297486508,-500.0,0.00031232,8]
[326748167,1715297486591,-500.0,0.00031232,8]
[326748168,1715297486601,-1110.14,0.00031232,8]
[326748169,1715297486611,-500.0,0.00031232,8]
[326748170,1715297486620,-500.0,0.00031232,8]
[326748171,1715297486630,-1787.68,0.00031232,8]
[326748172,1715297486639,-500.0,0.00031232,8]
[326748173,1715297486649,-500.0,0.00031232,8]
[326748174,1715297486658,-2155.46,0.00031232,8]
[326748175,1715297486668,-500.0,0.00031232,8]
[326748176,1715297486678,-207.90757791,0.00031232,8]
[326748177,1715297486687,-2057.96,0.00031232,8]
[326748178,1715297486696,-1235.53,0.00031232,8]
[326748179,1715297486706,-500.0,0.00031232,8]
[326748180,1715297486715,-500.0,0.00031232,8]
[326748181,1715297486725,-500.0,0.00031232,8]
[326748182,1715297486734,-508.33,0.00031232,8]
[326748183,1715297486744,-578.43,0.00031232,8]
[326748184,1715297486754,-500.0,0.00031232,8]
[326748185,1715297486763,-500.0,0.00031232,8]
[326748186,1715297486773,-500.0,0.00031232,8]
[326748187,1715297486784,-500.0,0.00031232,8]
[326748188,1715297486793,-500.0,0.00031232,8]
[326748189,1715297486803,-500.0,0.00031232,8]
[326748190,1715297486812,-500.0,0.00031232,8]
[326748191,1715297486822,-500.0,0.00031232,8]
[326748192,1715297486831,-2218.39,0.00031232,8]
[326748193,1715297486841,-500.0,0.00031232,8]
[326748194,1715297486850,-1446.56,0.00031232,8]
[326748195,1715297486859,-500.0,0.00031232,8]
[326748196,1715297486868,-507.41908215,0.00031232,8]
[326748197,1715297486877,-500.0,0.00031232,8]
[326748198,1715297486887,-702.6,0.00031232,8]
[326748199,1715297486896,-500.0,0.00031232,8]
[326748200,1715297486906,-274.83774546,0.00031232,8]